Workbook

Sheet 確認事項
A1: NO. | B1: 確認事項 | C1: 回答 | D1: CLOSE

Sheet 実行 (hidden)
F8: 【操作】
A9: C番号 | B9: 977 | F9: 「実行」シートの「観測作成」を押下。
A10: M番号 | B10: 630701 | F10: →「START」、「LOOP」、「END」を「obs_sequence」に貼り付けます。
F11: 「実行」シートの「時刻反映」を押下。
F12: →WOLの時間と関数エラーとなっているセルを修正します。
F13: 【注意点】
F14: 「START」、「LOOP」、「END」の"cmd count"からシート内に何行あるかを取得しているので、ここは空白がないように"0”を入力してください。
F15: もし空白があった場合、コピー範囲が小さくなってしまいます。
F16: ”WOL”シートの4行目以下は、実施するWOLのみを記載すること。 (4行目以下に、期間開始日時と終了日時の記載は不要です。)

Sheet チェック表 (hidden)
B2: コマンド作成時注意項目
B3: NO. | C3: 項目 | D3: チェック
B4: 1 | C4: 観測期間開始時に「dcsm-EF_BUS_MONI_ON」手順が入っていることを確認する。 ただし、前回の観測終了時に「dcsm-EF_BUS_MONI_OFF」を実行していない場合は確認不要。 | D4: □
B5: 2 | C5: 観測期間開始日に、観測する機器の”ON”手順が入っていることを確認する。 ただし、PWI、MGF、MAST、WPTを"ON"にする場合は、PWI、MGF、MAST、WPTよりも先にPMEが"ON"となっていること。 ※クルーズ観測中は、MEA1,HEPE,MGFのみ”ON” | D5: □
B6: 3 | C6: TLM MODEが観測前に「５」 観測終了後は「１０」 となっていることを確認する | D6: □
B7: 4 | C7: 観測時間が”86400”を超えるていないか確認する。 超えていた場合は、main計画作成時に途中ダミーコマンドを挿入すること
B8: 5 | C8: WOLの開始時刻が正しいことを確認する | D8: □
B9: 6 | C9: WOLの時間を確認 HV OFFになっていることを確認する ↓ クルーズ観測を行っている機器(HEPE、ENA、MIA、MEA、MSAのみ) フライバイを行っている機器(MSA,PWI,MGF,MEA,ENA,MIA,HEPE,MDM) | D9: □
B10: 7 | C10: WOL終了時刻＋10以降にのHVがONになっていることを確認する。 クルーズ観測を行っている機器(HEPE、ENA、MIA、MEA、MSAのみ) フライバイを行っている機器(MSA,PWI,MGF,MEA,ENA,MIA,HEPE,MDM) | D10: □
B11: 8 | C11: 観測期間最終日に、観測を行った機器の”OFF”手順が入っていることを確認する。 ただし、PWI,MGF,MAST,WPT-OFF手順の後にPME-OFF手順が入っていることを確認する。 | D11: □
B12: 9 | C12: MDP_POWEROFFのあとにdcsm-MC_ENA_MDPが入っていることを確認する。 | D12: □
B13: 10 | C13: CELのMONI ONは長時間(1h以上の場合は、山下さんと要相談)しないこと BUSにはCELのみのもあるので注意 dcsm-BUS_CEL_MONI_ON dcsm-BUS_CEL_MONI_OFF | D13: □
B14: 11 | C14: MEA1の SCAN ON は dcsm-EF_MEA1_ON_SW.cpsに入っているので 順番は MDP ONして dcsm-EF_MEA1_ON_SW.cps dcsm-EF_MEA1_HV_ON.cps dcsm-EF_MEA1_HV_OFF.cps dcsm-EF_MEA1_HV_ON.cps dcsm-EF_MEA1_HV_SCAN_OFF.cps dcsm-EF_MEA1_OFF.cps MDP OFF dcsm-EF_MEA_ON_SW.cps dcsm-EF_MEA_HV_ON.cps dcsm-EF_MEA_HV_OFF.cps dcsm-EF_MEA_HV_ON.cps dcsm-EF_MEA_HV_SCAN_OFF.cps dcsm-EF_MEA_OFF.cps になる SCAN OFFにすると データが出てこない HV OFF->ON時は注意する | D14: □
B15: 13 | C15: 2021/6/25以降 dcsm-EF_MSA_ON_C が最新 dcsm-EF_MSA_ONは使用しない | D15: □
B16: 14 | C16: 2021/6/25以降 dcsm-CRCO_MIA_CHECK_C が最新 dcsm-CRCO_MIA_CHECKは使用しない（クルーズチェックアウトの時） | D16: □
B17: 15 | C17: 2021/6/25以降 dcsm-CRCO_MSA_CHECK_C が最新 dcsm-CRCO_MSA_CHECKは使用しない（クルーズチェックアウトの時） | D17: □
B18: 16 | C18: フライバイ時、MIAのHV_ON時間帯によって違うので必ず確認する MIA_HV_ON_RC MIA_HV_ON_SW_RC MIA_HV_ON_MAG_RC | D18: □
B19: 17 | C19: Excelの時間を確認する 時間通りになっているか | D19: □

Sheet START (hidden)
A1: Start | B1: End | C1: Start | D1: End | E1: Event | F1: Activity | G1: Procedure | H1: Duration (sec) | L1: cmd count | N1: cmd count
C2: =#REF! ->  | D2: =C2+H2/3600/24 ->  | F2: BUS_ON | G2: BUS_SETUP_D | H2: =VLOOKUP(G2,List!B:C,2,0) -> 577 | K2: =VLOOKUP(G2,List!B:E,4,0) -> dcsm-EF_BUS_MONI_ON | L2: =VLOOKUP(G2,List!B:G,6,0) -> 20 | N2: =+"0000 CALL "&K2&" -Run" -> 0000 CALL dcsm-EF_BUS_MONI_ON -Run | P2: CALL | Q2: dcsm-EF_BUS_MONI_ON | U2: =+IF(Q2=K2,"","x") -> 
C3: =+D2 ->  | D3: =C3+H3/3600/24 ->  | F3: MDP ON | G3: MDP_ON_D | H3: =VLOOKUP(G3,List!B:C,2,0) -> 509 | K3: =VLOOKUP(G3,List!B:E,4,0) -> dcsm-EF_MDP_ON | L3: =VLOOKUP(G3,List!B:G,6,0) -> 11 | N3: =+"0000 CALL "&K3&" -Run" -> 0000 CALL dcsm-EF_MDP_ON -Run | P3: CALL | Q3: dcsm-EF_MDP_ON | U3: =+IF(Q3=K3,"","x") -> 
C4: =D3 ->  | D4: =C4+H4/3600/24 ->  | G4: MDP_CRUISE_SET | H4: =VLOOKUP(G4,List!B:C,2,0) -> 42 | K4: =VLOOKUP(G4,List!B:E,4,0) -> dcsm-EF_MDP_CRUISE_SET | L4: =VLOOKUP(G4,List!B:G,6,0) -> 2 | N4: 0000 CALL dcsm-EF_MDP_CRUISE_SET -Run
C5: =D4 ->  | F5: TLM mode change (MODE_10) | G5: TLM_MODE_10 | H5: =VLOOKUP(G5,List!B:C,2,0) -> 42 | K5: =VLOOKUP(G5,List!B:E,4,0) -> dcsm-EF_BUS_TLM_MODE_10 | L5: =VLOOKUP(G5,List!B:G,6,0) -> 2 | N5: 0000 CALL dcsm-EF_BUS_TLM_MODE_10 -Run
F6: SI Power ON | G6: MEA1_ON_SETUP_SW | H6: =VLOOKUP(G6,List!B:C,2,0) -> 292 | K6: =VLOOKUP(G6,List!B:E,4,0) -> dcsm-EF_MEA1_ON_SW | L6: =VLOOKUP(G6,List!B:G,6,0) -> 12 | N6: 0000 CALL dcsm-EF_MEA1_ON_SW -Run
G7: HEP_ON_SETUP | H7: =VLOOKUP(G7,List!B:C,2,0) -> 1230 | K7: =VLOOKUP(G7,List!B:E,4,0) -> dcsm-EF_HEP_ON_START_for_TL | L7: =VLOOKUP(G7,List!B:G,6,0) -> 34 | N7: 0000 CALL dcsm-EF_HEP_ON_START_for_TL -Run | P7: CALL | Q7: dcsm-EF_MDP_CRUISE_SET | U7: x
G8: PME_ON | H8: =VLOOKUP(G8,List!B:C,2,0) -> 80 | K8: =VLOOKUP(G8,List!B:E,4,0) -> dcsm-EF_PME_ON | L8: =VLOOKUP(G8,List!B:G,6,0) -> 2 | N8: 0000 CALL dcsm-EF_PME_ON -Run | P8: CALL | Q8: dcsm-EF_BUS_TLM_MODE_10 | U8: x
G9: MGF_ON_SETUP | H9: =VLOOKUP(G9,List!B:C,2,0) -> 14 | K9: =VLOOKUP(G9,List!B:E,4,0) -> dcsm-EF_MGF_ON | L9: =VLOOKUP(G9,List!B:G,6,0) -> 3 | N9: 0000 CALL dcsm-EF_MGF_ON -Run

Sheet END (hidden)
A1: Start | B1: End | C1: Start | D1: End | E1: Event | F1: Activity | G1: Procedure | H1: Duration (sec) | L1: cmd count | N1: cmd count
C2: =D2-H2/3600/24 ->  | D2: =C3 ->  | F2: SI OFF | G2: HEP_OFF | H2: =VLOOKUP(G2,List!B:C,2,0) -> 70 | K2: =VLOOKUP(G2,List!B:E,4,0) -> dcsm-EF_HEPE_OFF_STOP | L2: =VLOOKUP(G2,List!B:G,6,0) -> 4 | N2: =+"0000 CALL "&K2&" -Run" -> 0000 CALL dcsm-EF_HEPE_OFF_STOP -Run | P2: CALL | Q2: dcsm-EF_HEPE_OFF_STOP | U2: =+IF(Q2=K2,"","x") -> 
G3: MEA1_OFF | H3: =VLOOKUP(G3,List!B:C,2,0) -> 160 | K3: =VLOOKUP(G3,List!B:E,4,0) -> dcsm-EF_MEA1_OFF | L3: =VLOOKUP(G3,List!B:G,6,0) -> 4 | N3: =+"0000 CALL "&K3&" -Run" -> 0000 CALL dcsm-EF_MEA1_OFF -Run | P3: CALL | Q3: dcsm-EF_MEA1_OFF
G4: MGF_OFF | H4: =VLOOKUP(G4,List!B:C,2,0) -> 8 | K4: =VLOOKUP(G4,List!B:E,4,0) -> dcsm-EF_MGF_OFF | L4: =VLOOKUP(G4,List!B:G,6,0) -> 1 | N4: 0000 CALL dcsm-EF_MGF_OFF -Run | P4: CALL | Q4: dcsm-EF_MGF_OFF
G5: PME_OFF | H5: =VLOOKUP(G5,List!B:C,2,0) -> 40 | K5: =VLOOKUP(G5,List!B:E,4,0) -> dcsm-EF_PME_OFF | L5: =VLOOKUP(G5,List!B:G,6,0) -> 1 | N5: 0000 CALL dcsm-EF_PME_OFF -Run | P5: CALL | Q5: dcsm-EF_PME_OFF
F6: MDP OFF | G6: MDP_OFF_D | H6: =VLOOKUP(G6,List!B:C,2,0) -> 120 | K6: =VLOOKUP(G6,List!B:E,4,0) -> dcsm-EF_MDP_POWEROFF | L6: =VLOOKUP(G6,List!B:G,6,0) -> 3 | N6: 0000 CALL dcsm-EF_MDP_POWEROFF -Run | P6: CALL | Q6: dcsm-EF_MDP_POWEROFF
F7: MACRO ENA | G7: MC_ENA | H7: =VLOOKUP(G7,List!B:C,2,0) -> 246 | K7: =VLOOKUP(G7,List!B:E,4,0) -> dcsm-MC_ENA_MDP | L7: =VLOOKUP(G7,List!B:G,6,0) -> 21 | N7: 0000 CALL dcsm-MC_ENA_MDP -Run | P7: CALL | Q7: dcsm-MC_ENA_MDP
D8: =C9 ->  | F8: BUS OFF | G8: BUS_OFF_D | H8: =VLOOKUP(G8,List!B:C,2,0) -> 220 | K8: =VLOOKUP(G8,List!B:E,4,0) -> dcsm-EF_BUS_MONI_OFF | L8: =VLOOKUP(G8,List!B:G,6,0) -> 5 | N8: 0000 CALL dcsm-EF_BUS_MONI_OFF -Run | U8: =+IF(Q7=K8,"","x") -> x
C9: =#REF! ->  | D9: =C9+H9/3600/24 ->  | E9: =#REF! ->  | G9: END | H9: 1200 | K9: =VLOOKUP(G9,List!B:E,4,0) ->  | L9: 0

Sheet LOOP (hidden)
A1: Start | B1: End | C1: Start | D1: End | E1: Event | F1: Activity | G1: Procedure | H1: Duration (sec) | L1: cmd count | N1: cmd count
C2: =D1 -> End | D2: =C2+H2/3600/24 ->  | F2: SI HV ON | G2: MEA1_HV_ON | H2: =VLOOKUP(G2,List!B:C,2,0) -> 1702 | K2: =VLOOKUP(G2,List!B:E,4,0) -> dcsm-EF_MEA1_HV_ON | L2: =VLOOKUP(G2,List!B:G,6,0) -> 27 | N2: =+"0000 CALL "&K2&" -Run" -> 0000 CALL dcsm-EF_MEA1_HV_ON -Run | P2: CALL | Q2: dcsm-EF_MEA1_HV_ON | U2: =+IF(Q2=K2,"","x") -> 
G3: HEP_HV_ON | H3: =VLOOKUP(G3,List!B:C,2,0) -> 270 | K3: =VLOOKUP(G3,List!B:E,4,0) -> dcsm-EF_HEPE_HV_ON_OBS_START | L3: =VLOOKUP(G3,List!B:G,6,0) -> 6 | N3: =+"0000 CALL "&K3&" -Run" -> 0000 CALL dcsm-EF_HEPE_HV_ON_OBS_START -Run | P3: CALL | Q3: dcsm-EF_HEPE_HV_ON_OBS_START
F4: TLM mode change (MODE_5) | G4: TLM_MODE_5 | H4: =VLOOKUP(G4,List!B:C,2,0) -> 42 | I4: Mission: 7kbps, without user HK | K4: =VLOOKUP(G4,List!B:E,4,0) -> dcsm-EF_BUS_TLM_MODE_5 | L4: =VLOOKUP(G4,List!B:G,6,0) -> 2 | N4: 0000 CALL dcsm-EF_BUS_TLM_MODE_5 -Run | P4: CALL | Q4: dcsm-EF_BUS_TLM_MODE_5
D5: =C6 ->  | E5: Observation A | H5: =(D5-C5)*3600*24 ->  | I5: =H5/3600 ->  | L5: 0 | N5: ="0000 WAIT_SEC "&TEXT(H5,"#0") ->  | P5: WAIT_SEC | Q5: 26900 | U5: x
C6: =D6-H6/3600/24 ->  | D6: =C7 ->  | F6: TLM mode change (MODE_10) | G6: TLM_MODE_10 | H6: =VLOOKUP(G6,List!B:C,2,0) -> 42 | I6: Mission: 4kbps, with user HK | K6: =VLOOKUP(G6,List!B:E,4,0) -> dcsm-EF_BUS_TLM_MODE_10 | L6: =VLOOKUP(G6,List!B:G,6,0) -> 2 | N6: 0000 CALL dcsm-EF_BUS_TLM_MODE_10 -Run | P6: CALL | Q6: dcsm-EF_BUS_TLM_MODE_10
C7: =D7-H7/3600/24 ->  | D7: =C8 ->  | F7: SI HV OFF | G7: HEP_HV_OFF | H7: =VLOOKUP(G7,List!B:C,2,0) -> 190 | K7: =VLOOKUP(G7,List!B:E,4,0) -> dcsm-EF_HEPE_HV_OFF_OBS_OFF | L7: =VLOOKUP(G7,List!B:G,6,0) -> 5 | N7: 0000 CALL dcsm-EF_HEPE_HV_OFF_OBS_OFF -Run | P7: CALL | Q7: dcsm-EF_HEPE_HV_OFF_OBS_OFF
C8: =D8-H8/3600/24 ->  | D8: =C9 ->  | G8: MEA1_HV_OFF | H8: =VLOOKUP(G8,List!B:C,2,0) -> 182 | K8: =VLOOKUP(G8,List!B:E,4,0) -> dcsm-EF_MEA1_HV_OFF | L8: =VLOOKUP(G8,List!B:G,6,0) -> 10 | N8: 0000 CALL dcsm-EF_MEA1_HV_OFF -Run | P8: CALL | Q8: dcsm-EF_MEA1_HV_OFF
C9: =#REF! ->  | D9: =C9+H9/3600/24 ->  | E9: WOL | G9: =(#REF!-D8)*24*3600 ->  | H9: 1200 | K9: =VLOOKUP(G9,List!B:E,4,0) ->  | L9: 0 | N9: ="0000 WAIT_SEC "&TEXT(G9,"#0") ->  | P9: WAIT_SEC | Q9: 1800

Sheet COMMENT (hidden)
A1: activity | B1: Comment
A2: main_start | B2: #!HEAD: main2-CROUSE_OBS6_XDOR_001_M63 2021-07-01 01:18:36 478 45 MMO MAIN2 // Earth Fly-by 0001 . # LET @ONERR=NEXT 0002 . # ========================================================================== 0003 # <startTime>2021-07-06T08:00:00Z</startTime> 0004 # <stopTime>2021-07-15T10:00:00Z</stopTime> 0005 # << XDOR:XDOR_BJXR_C%%%_CRCO_M&&&&&&_00001.BC >> 連続送信***** 0006 # << XOR:XOR__BJXR_C%%%_CRCO_M&&&&&&_00001.BC >> ***** 0007 # ========================================================================== 0008 # ========================================================================== 0009 . # EXEC_AT 2021-07-06 08:00:00 0010 # ◆◇◆◇◆◇◆◇◆◇◆◇◆◇◆◇◆◇◆◇◆◇◆◇◆◇◆◇◆◇◆◇◆◇◆◇◆
A3: main_end | B3: 0291 ############################################################################# 0292 # ==========================================================================
A4: OBS | B4: 0068 # ========================================================================== 0069 # @@. Observation \\ 0070 # ========================================================================== 0071 #
A5: WOL | B5: 0217 # ========================================================================== 0218 # @@. WOL # $$ 0219 # ========================================================================== 0220 #
A6: BUS_ON | B6: 0016 # ========================================================================== 0017 # @@. BUS ON 0018 # ========================================================================== 0019 #
A7: MDP ON | B7: 0020 # ========================================================================== 0021 # @@. MDP ON 0022 # ========================================================================== 0023 #
A8: SI Check
A9: MDP OFF | B9: 0274 # ========================================================================== 0275 # @@. MDP OFF 0276 # ========================================================================== 0277 #
A10: BUS OFF | B10: 0285 # ========================================================================== 0286 # @@. BUS MONI OFF 0287 # ========================================================================== 0288 #
A11: SI Power ON | B11: 0034 # ========================================================================== 0035 # @@. PI POWER ON 0036 # ========================================================================== 0037 #
A12: SI HV ON | B12: 0049 # ========================================================================== 0050 # @@. PI HV ON 0051 # ========================================================================== 0052 #
A13: TLM mode change (MODE_5) | B13: 0059 # ========================================================================== 0060 # @@. TLM MODE 5 (Mission: 7kbps, without user HK) 0061 # ========================================================================== 0062 #
A14: TLM mode change (MODE_10) | B14: 0028 # ========================================================================== 0029 # @@. TLM MODE 10 (Mission: 4kbps, with user HK) 0030 # ========================================================================== 0031 #
A15: SI HV OFF | B15: 0207 # ========================================================================== 0208 # @@. PI HV OFF 0209 # ========================================================================== 0210 #
A16: SI Power OFF | B16: 0259 # ========================================================================== 0260 # @@. PI Power OFF 0261 # ========================================================================== 0262 #
A17: MSA SOFT RESET
A18: MACRO COMMAND ENA | B18: 0280 # ========================================================================== 0281 # @@. MACRO ENA 0282 # ========================================================================== 0283 #
A19: CrouseCheckOut

Sheet List
C1: Duration (sec) | D1: source filename | E1: filename | G1: cmdcount
A2: BUS ON | B2: BUS_SETUP | C2: 687 | D2: main2-CRCO_PART1_XOR_002_M80 | E2: main2-CRCO_PART1_XOR_002_M80 | G2: 25
A3: BUS ON | B3: BUS_SETUP_D | C3: 577 | D3: main2-BUS_NECP_HV_MONI_ON_XDOR_001_M60.cps | E3: dcsm-EF_BUS_MONI_ON | G3: 20
A4: MDP ON | B4: MDP_SETUP | C4: 509 | D4: main2-CRCO_PART1_XOR_002_M80 | E4: main2-CRCO_PART1_XOR_002_M80 | G4: 11
B5: MDP_ON_D | C5: 509 | D5: dcsm-EF_MDP_ON | E5: dcsm-EF_MDP_ON | G5: 11
B6: MDP_CRUISE_SET | C6: 42 | D6: main2-MDP_CRUISE_SET.cps | E6: dcsm-EF_MDP_CRUISE_SET | G6: 2
A7: SI Check | B7: PWI_CHECK | C7: 2672 | D7: main2-CRCO_PART1_XOR_002_M80 | E7: main2-CRCO_PART1_XOR_002_M80 | G7: 56 | I7: 180 | J7: =+SUM(H7,I8,I7) -> 348
B8: MGF_CHECK | C8: 4179 | D8: main2-CRCO_PART1_XOR_002_M80 | E8: main2-CRCO_PART1_XOR_002_M80 | G8: 52 | I8: =14*12 -> 168
B9: MASTWPT_CHECK | C9: 2108 | D9: main2-CRCO_PART1_XOR_002_M80 | E9: main2-CRCO_PART1_XOR_002_M80 | G9: 46
B10: MDM_CHECK | C10: 1252 | D10: main2-CRCO_PART1_XOR_002_M80 | E10: main2-CRCO_PART1_XOR_002_M80 | G10: 19
B11: ENA_CHECK | C11: 1134 | D11: main2-CRCO_PART1_XOR_002_M80 | E11: main2-CRCO_PART1_XOR_002_M80 | G11: 17
B12: MEA_CHECK | C12: 4620 | D12: main2-CRCO_PART1_XOR_002_M80 | E12: main2-CRCO_PART1_XOR_002_M80 | G12: 51
B13: MSA_CHECK | C13: 1102 | D13: main2-CRCO_PART1_XOR_002_M80 | E13: main2-CRCO_PART1_XOR_002_M80 | G13: 18
B14: MIA_CHECK | C14: 1562 | D14: main2-CRCO_PART1_XOR_002_M80 | E14: main2-CRCO_PART1_XOR_002_M80 | G14: 16
B15: HEP_CHECK | C15: 4936 | D15: main2-CRCO_PART1_XOR_002_M80 | E15: main2-CRCO_PART1_XOR_002_M80 | G15: =35+47 -> 82
B16: MSASI_CHECK | C16: 6688 | D16: main2-CRCO_PART1_XOR_002_M80 | E16: main2-CRCO_PART2_XOR_002_M80 | G16: 22
A17: MDP OFF | B17: MDP_OFF | C17: 120 | D17: main2-CRCO_PART1_XOR_002_M80 | E17: main2-CRCO_PART2_XOR_002_M80 | G17: 3
B18: MDP_OFF_D | C18: 120 | D18: dcsm-EF_MDP_POWEROFF | E18: dcsm-EF_MDP_POWEROFF | G18: 3
A19: BUS OFF | B19: BUS_OFF | C19: 220 | D19: main2-CRCO_PART1_XOR_002_M80 | E19: main2-CRCO_PART4_XOR_002_M80 | G19: 5
B20: BUS_OFF_D | C20: 220 | D20: dcsm-EF_BUS_MONI_OFF | E20: dcsm-EF_BUS_MONI_OFF | G20: 5
B21: TCSF_MSASI | C21: 345 | D21: dcsm-tcfs_tbl1_msasi_set.cps | E21: dcsm-tcfs_tbl1_msasi_set | G21: 13
A22: SI Power ON | B22: MSA_ON_SETUP | C22: 1092 | D22: main2-MSA_ON.cps | E22: dcsm-EF_MSA_ON | G22: 15
B23: PME_ON | C23: 80 | D23: main2-PME_ON.cps | E23: dcsm-EF_PME_ON | G23: 2
B24: PWI_ON_SETUP | C24: 868 | D24: dcsm-EF_PWI_ON_CRUSE.cps | E24: dcsm-EF_PWI_ON_CRUISE | G24: 27 | H24: 520
B25: MGF_ON_SETUP | C25: 14 | D25: 20200410_Earth-fly-by_MGF_ON_20200221.cps | E25: dcsm-EF_MGF_ON | G25: 3
B26: MEA_ON_SETUP_SW | C26: 386 | D26: MEA_Earth_Flyby_1_ON_HVOFF.cps, | E26: dcsm-EF_MEA_ON_SW | G26: 21
B27: MEA1_ON_SETUP_SW | C27: 292 | D27: MEA_Earth_Flyby_1_ON_HVOFF.cps, | E27: dcsm-EF_MEA1_ON_SW | G27: 12
B28: MEA_ON_SETUP_MAG | C28: 386 | D28: MEA_Earth_Flyby_4_ON_HVOFF.cps | E28: dcsm-EF_MEA_ON_MAG | G28: 21
B29: ENA_ON_SETUP | C29: 564 | D29: ENA_power_ON.cps | E29: dcsm-EF_ENA_power_ON | G29: 7
B30: MIA_ON_SETUP | C30: 382 | D30: main2-MIA_ON.cps | E30: dcsm-EF_MIA_ON | G30: 6
B31: HEP_ON_SETUP | C31: 1230 | D31: main2-HEP_ON_START_for_TL.cps | E31: dcsm-EF_HEP_ON_START_for_TL | G31: 34
B32: MDM_ON_SETUP | C32: 202 | D32: クルーズ観測手順.txt | E32: dcsm-EF_MDM_ON | F32: 暫定的に600sec入れてある | G32: 6
A33: SI HV ON | B33: MEA_HV_ON | C33: 1756 | D33: MEA_Earth_Flyby_2_ON_HVON.cps, MEA_Earth_Flyby_5_ON_HVON.cps, MEA_Earth_Flyby_7_ON_HVON.cps | E33: dcsm-EF_MEA_HV_ON | G33: 54
B34: MEA1_HV_ON | C34: 1702 | D34: MEA_Earth_Flyby_2_ON_HVON.cps, MEA_Earth_Flyby_5_ON_HVON.cps, MEA_Earth_Flyby_7_ON_HVON.cps | E34: dcsm-EF_MEA1_HV_ON | G34: 27
B35: MIA_HV_ON | C35: 240 | D35: main2-MIA_HV_ON.cps | E35: dcsm-EF_MIA_HV_ON | G35: 6
B36: MIA_HV_ON_MAG | C36: 142 | D36: main2-MIA_HV_ON_MAG.cps | E36: dcsm-EF_MIA_HV_ON_MAG | G36: 4
B37: MIA_HV_ON_SW | C37: 102 | D37: main2-MIA_HV_ON_SW.cps | E37: dcsm-EF_MIA_HV_ON_SW | G37: 3
B38: MIA_HV_ON_RC | C38: 280 | D38: main2-MIA_HV_ON.cps | E38: dcsm-EF_MIA_HV_ON_RC | G38: 7
B39: MIA_HV_ON_MAG_RC | C39: 262 | D39: main2-MIA_HV_ON_MAG.cps | E39: dcsm-EF_MIA_HV_ON_MAG_RC | G39: 7
B40: MIA_HV_ON_SW_RC | C40: 262 | D40: main2-MIA_HV_ON_SW.cps | E40: dcsm-EF_MIA_HV_ON_SW_RC | G40: 7
B41: MSA_HV_ON | C41: 10954 | D41: main2-MSA_HV_ON.cps | E41: dcsm-EF_MSA_HV_ON_1,dcsm-EF_MSA_HV_ON_2 | G41: 232
B42: MSA_HV_ON_VFB | C42: 6144 | D42: main2-MSA_HV_ON.cps | E42: dcsm-EF_MSA_HV_ON_1_VFB,dcsm-EF_MSA_HV_ON_2_VFB | G42: 232
B43: ENA_HV_ON | C43: 344 | D43: ENA_HV_ON.cps | E43: dcsm-EF_ENA_HV_ON | G43: 18
B44: ENA_HV_ON_H | C44: 344 | D44: ENA_HV_ON_H.cps | E44: dcsm-EF_ENA_HV_ON_H | G44: 18
B45: HEP_HV_ON | C45: 270 | D45: main2-HEPE_HV_ON_OBS_START.cps | E45: dcsm-EF_HEPE_HV_ON_OBS_START | G45: 6
A46: TLM mode change (MODE_5) | B46: TLM_MODE_5 | C46: 42 | D46: main2-BUS_TLM_MODE_5.cps | E46: dcsm-EF_BUS_TLM_MODE_5 | G46: 2
A47: TLM mode change (MODE_10) | B47: TLM_MODE_10 | C47: 42 | D47: main2-BUS_TLM_MODE_10.cps | E47: dcsm-EF_BUS_TLM_MODE_10 | G47: 2
A48: SI HV OFF | B48: HEP_HV_OFF | C48: 190 | D48: main2-HEPE_HV_OFF_OBS_OFF.cps | E48: dcsm-EF_HEPE_HV_OFF_OBS_OFF | G48: 5
B49: ENA_HV_OFF | C49: 198 | D49: ENA_HV_OFF.cps | E49: dcsm-EF_ENA_HV_OFF | G49: 4
B50: MSA_HV_OFF | C50: 714 | D50: main2-MSA_HV_OFF.cps | E50: dcsm-EF_MSA_HV_OFF | G50: 24
B51: MSA_HV_OFF_VFB | C51: 774 | D51: main2-MSA_HV_OFF.cps | E51: dcsm-EF_MSA_HV_OFF_VFB | G51: 25
B52: MIA_HV_OFF | C52: 60 | D52: main2-MIA_HV_OFF.cps | E52: dcsm-EF_MIA_HV_OFF | G52: 1
B53: MEA_HV_SCAN_OFF | C53: 210 | D53: MEA_Earth_Flyby_3_OFF.cps,MEA_Earth_Flyby_8_OFF.cps(shutdownなし） | E53: dcsm-EF_MEA_HV_SCAN_OFF | G53: 24
B54: MEA1_HV_SCAN_OFF | C54: 186 | D54: MEA_Earth_Flyby_3_OFF.cps,MEA_Earth_Flyby_8_OFF.cps(shutdownなし） | E54: dcsm-EF_MEA1_HV_SCAN_OFF | G54: 12
B55: MEA_HV_OFF | C55: 202 | D55: MEA_Earth_Flyby_6_ON_HVOFF.cps | E55: dcsm-EF_MEA_HV_OFF | G55: 20
B56: MEA1_HV_OFF | C56: 182 | D56: dcsm-EF_MEA1_HV_OFF.cps | E56: dcsm-EF_MEA1_HV_OFF | G56: 10
A57: SI Power OFF | B57: HEP_OFF | C57: 70 | D57: main2-HEPE_OFF_STOP.cps | E57: dcsm-EF_HEPE_OFF_STOP | G57: 4
B58: MIA_OFF | C58: 160 | D58: main2-MIA_OFF.cps | E58: dcsm-EF_MIA_OFF | G58: 4
B59: ENA_OFF | C59: 88 | D59: ENA_power_OFF.cps | E59: dcsm-EF_ENA_power_OFF | G59: 4
B60: MEA_OFF | C60: 164 | D60: MEA_Earth_Flyby_3_OFF.cps,MEA_Earth_Flyby_8_OFF.cps(shutdown)のみ | E60: dcsm-EF_MEA_OFF | G60: 6
B61: MEA1_OFF | C61: 160 | D61: MEA_Earth_Flyby_3_OFF.cps,MEA_Earth_Flyby_8_OFF.cps(shutdown)のみ | E61: dcsm-EF_MEA1_OFF | G61: 4
B62: MGF_OFF | C62: 8 | D62: 20200410_Earth-fly-by_MGF_OFF_20200221.cps | E62: dcsm-EF_MGF_OFF | G62: 1
B63: PWI_OFF | C63: 80 | D63: main2-PWI_OFF.cps | E63: dcsm-EF_PWI_OFF | G63: 2
B64: PME_OFF | C64: 40 | D64: main2-PME_OFF.cps | E64: dcsm-EF_PME_OFF | G64: 1
B65: MSA_OFF | C65: 380 | D65: main2-MSA_OFF.cps | E65: dcsm-EF_MSA_OFF | G65: 25
B66: MDM_OFF | C66: 160 | D66: クルーズ観測手順.txt | E66: dcsm-EF_MDM_OFF | F66: 暫定的に600sec入れてある | G66: 4
A67: MSA SOFT RESET | B67: MSA_SOFT_RESET2 | C67: 100 | D67: dcsm-EF_MSA_SOFT_RESET2.cps | E67: dcsm-EF_MSA_SOFT_RESET2 | G67: 5
A68: MACRO COMMAND ENA | B68: MC_ENA | C68: 246 | D68: main2-MC_ENA_MDP_XDOR_001_M58.cps | E68: dcsm-MC_ENA_MDP | G68: 21
B69: WAIT3600 | C69: 3600
B70: WAIT3500 | C70: 3500
B71: MSASI_DARK_1 | C71: 768 | D71: dcsm-MSASI_dark_CO_sequence1.cps | E71: dcsm-MSASI_dark_CO_sequence1 | G71: 11 | H71: =5*60*60+21*60+47 -> 19307
B72: MSASI_DARK_2 | C72: 19498 | D72: dcsm-MSASI_dark_CO_sequence2.cps | E72: dcsm-MSASI_dark_CO_sequence2 | G72: 55 | H72: =5*60*60+21*60+47 -> 19307
B73: MEA2_MEM_DMP | C73: 2550 | D73: dcsm-MEA2_MEM_DMP.cps | E73: dcsm-MEA2_MEM_DMP | G73: 36
B74: WAIT19357 | C74: 19357
B75: WAIT1800 | C75: 1800 | E75: WAIT_SEC 1800
B76: MDP_ERR_LOG_DUMP | C76: 9080 | D76: main2-MDP_ERR_LOG_DUMP_TL_XDOR_001_M08 | E76: dcsm-MDP_ERR_LOG_DUMP | G76: 6
A77: CrouseCheckOut | B77: CRCO_BUS_MONI_ON | C77: 310 | D77: main2-CRCO_PART1_XOR_003_M80 | E77: dcsm-CRCO_BUS_MONI_ON
B78: CRCO_ENA | C78: 1134 | D78: main2-CRCO_PART1_XOR_003_M80 | E78: dcsm-CRCO_ENA_CHECK
B79: CRCO_HEPE | C79: 2206 | D79: main2-CRCO_PART1_XOR_003_M80 | E79: dcsm-CRCO_HEPE_CHECK
B80: CRCO_HEPI | C80: 2730 | D80: main2-CRCO_PART1_XOR_003_M80 | E80: dcsm-CRCO_HEPI_CHECK
B81: CRCO_MASTWPT | C81: 1848 | D81: main2-CRCO_PART1_XOR_003_M80 | E81: dcsm-CRCO_MASTWPT_CHECK
B82: CRCO_MDM | C82: 2332 | D82: main2-CRCO_PART1_XOR_003_M80 | E82: dcsm-CRCO_MDM_CHECK
B83: CRCO_MDP_OFF | C83: 120 | D83: main2-CRCO_PART1_XOR_003_M80 | E83: dcsm-CRCO_MDP_OFF
B84: CRCO_MDP_ON | C84: 509 | D84: main2-CRCO_PART1_XOR_003_M80 | E84: dcsm-CRCO_MDP_ON
B85: CRCO_MEA | C85: 4620 | D85: main2-CRCO_PART1_XOR_003_M80 | E85: dcsm-CRCO_MEA_CHECK
B86: CRCO_MGF | C86: 4019 | D86: main2-CRCO_PART1_XOR_003_M80 | E86: dcsm-CRCO_MGF_CHECK
B87: CRCO_MIA | C87: 1562 | D87: main2-CRCO_PART1_XOR_003_M80 | E87: dcsm-CRCO_MIA_CHECK
B88: CRCO_MSASI | C88: 6688 | D88: main2-CRCO_PART1_XOR_003_M80 | E88: dcsm-CRCO_MSASI_CHECK
B89: CRCO_MSA | C89: 1102 | D89: main2-CRCO_PART1_XOR_003_M80 | E89: dcsm-CRCO_MSA_CHECK
B90: CRCO_PME_OFF | C90: 160 | D90: main2-CRCO_PART1_XOR_003_M80 | E90: dcsm-CRCO_PME_OFF
B91: CRCO_PME_ON | C91: 160 | D91: main2-CRCO_PART1_XOR_003_M80 | E91: dcsm-CRCO_PME_ON
B92: CRCO_PWI | C92: 2512 | D92: main2-CRCO_PART1_XOR_003_M80 | E92: dcsm-CRCO_PWI_CHECK
B93: CRCO_SI_READY | C93: 377 | D93: main2-CRCO_PART1_XOR_003_M80 | E93: dcsm-CRCO_SI_READY
B94: MSA_ON_SETUP_C | C94: 1092 | D94: main2-MSA_ON.cps | E94: dcsm-EF_MSA_ON_C | G94: 15

Sheet WOL
C1: START TIME | D1: 2021-08-14T09:30:00
C2: END TIME | D2: 2021-08-19T05:30:00
B3: ID | D3: date time excel | E3: duration(s)
B4: WOLS | C4: WOL#1 | D4: 2021-08-15T05:41:33 | E4: 1200
B5: WOLS | C5: WOL#2 | D5: 2021-08-16T05:42:56 | E5: 1200
B6: WOLS | C6: WOL#3 | D6: 2021-08-17T05:42:10 | E6: 1200
B7: WOLS | C7: WOL#4 | D7: 2021-08-18T05:44:25 | E7: 1200
C19: WOLS | D19: 2021-218T12:21:48.000Z | H19: 2021-08-06T12:21:48
C20: WOLE | D20: 2021-218T12:41:48.000Z
C21: WOLS | D21: 2021-219T07:45:31.000Z
C22: WOLE | D22: 2021-219T08:05:31.000Z
C23: WOLS | D23: 2021-220T07:56:05.000Z
C24: WOLE | D24: 2021-220T08:16:05.000Z
C25: WOLS | D25: 2021-221T00:21:54.000Z
C26: WOLE | D26: 2021-221T00:41:54.000Z
C27: WOLS | D27: 2021-221T15:21:54.000Z
C28: WOLE | D28: 2021-221T15:41:54.000Z
C29: WOLS | D29: 2021-222T05:51:54.000Z
C30: WOLE | D30: 2021-222T06:11:54.000Z
C31: WOLS | D31: 2021-222T09:31:54.000Z
C32: WOLE | D32: 2021-222T09:51:54.000Z
C33: WOLS | D33: 2021-222T14:54:24.000Z
C34: WOLE | D34: 2021-222T15:14:24.000Z
C35: WOLS | D35: 2021-222T22:51:54.000Z
C36: WOLE | D36: 2021-222T23:11:54.000Z
C37: WOLS | D37: 2021-223T10:51:54.000Z
C38: WOLE | D38: 2021-223T11:11:54.000Z
C39: WOLS | D39: 2021-223T23:21:54.000Z
C40: WOLE | D40: 2021-223T23:41:54.000Z
C41: WOLS | D41: 2021-224T21:04:27.000Z
C42: WOLE | D42: 2021-224T21:24:27.000Z
C43: WOLS | D43: 2021-225T05:39:16.000Z
C44: WOLE | D44: 2021-225T05:59:16.000Z
C45: WOLS | D45: 2021-226T09:16:03.000Z | H45: 2021-08-14T09:16:03
C46: WOLE | D46: 2021-226T09:36:03.000Z
C47: WOLS | D47: 2021-227T05:41:33.000Z | H47: 2021-08-15T05:41:33
C48: WOLE | D48: 2021-227T06:01:33.000Z
C49: WOLS | D49: 2021-228T05:42:56.000Z | H49: 2021-08-16T05:42:56
C50: WOLE | D50: 2021-228T06:02:56.000Z
C51: WOLS | D51: 2021-229T05:42:10.000Z | H51: 2021-08-17T05:42:10
C52: WOLE | D52: 2021-229T06:02:10.000Z
C53: WOLS | D53: 2021-230T05:44:25.000Z | H53: 2021-08-18T05:44:25
C54: WOLE | D54: 2021-230T06:04:25.000Z
C55: WOLS | D55: 2021-231T05:46:04.000Z | H55: 2021-08-19T05:46:04
C56: WOLE | D56: 2021-231T06:06:04.000Z

Sheet obs_sequence
A1: START | C1: =WOL!D1 -> 2021-08-14T09:30:00 | D1: OBCP START | E1: =C1-12*60*60/3600/24 -> 2021-08-13T21:30:00 | L1: 5days
A2: END | C2: =WOL!D2 -> 2021-08-19T05:30:00 | D2: OBCP END | E2: =C2+(240+120+300)/3600/24 -> 2021-08-19T05:41:00 | F2: CMD END | G2: =C2-100/3600/24 -> 2021-08-19T05:28:20
A4: Relative time (h) | C4: Absolute time (UTC) | L4: =+SUM(L6:L85) -> 387
A5: Start | B5: End | C5: Start | D5: End | E5: Event | F5: Activity | G5: Procedure | H5: Duration (sec) | L5: cmd count | N5: cmd count
C6: 2021-08-14T09:30:00 | D6: =C6+H6/3600/24 -> 2021-08-14T09:39:37 | F6: BUS_ON | G6: BUS_SETUP_D | H6: =VLOOKUP(G6,List!B:C,2,0) -> 577 | K6: =VLOOKUP(G6,List!B:E,4,0) -> dcsm-EF_BUS_MONI_ON | L6: =VLOOKUP(G6,List!B:G,6,0) -> 20 | M6: =C6-317/3600/24 -> 2021-08-14T09:24:43 | N6: =+"0000 CALL "&K6&" -Run" -> 0000 CALL dcsm-EF_BUS_MONI_ON -Run
C7: =+D6 -> 2021-08-14T09:39:37 | D7: =C7+H7/3600/24 -> 2021-08-14T09:48:06 | F7: MDP ON | G7: MDP_ON_D | H7: =VLOOKUP(G7,List!B:C,2,0) -> 509 | K7: =VLOOKUP(G7,List!B:E,4,0) -> dcsm-EF_MDP_ON | L7: =VLOOKUP(G7,List!B:G,6,0) -> 11 | M7: =C7-317/3600/24 -> 2021-08-14T09:34:20 | N7: =+"0000 CALL "&K7&" -Run" -> 0000 CALL dcsm-EF_MDP_ON -Run
C8: =D7 -> 2021-08-14T09:48:06 | D8: =C8+H8/3600/24 -> 2021-08-14T09:48:48 | G8: MDP_CRUISE_SET | H8: =VLOOKUP(G8,List!B:C,2,0) -> 42 | K8: =VLOOKUP(G8,List!B:E,4,0) -> dcsm-EF_MDP_CRUISE_SET | L8: =VLOOKUP(G8,List!B:G,6,0) -> 2 | M8: 2021-08-14T09:42:49 | N8: 0000 CALL dcsm-EF_MDP_CRUISE_SET -Run
C9: =D8 -> 2021-08-14T09:48:48 | D9: 2021-08-14T09:49:30 | F9: TLM mode change (MODE_10) | G9: TLM_MODE_10 | H9: =VLOOKUP(G9,List!B:C,2,0) -> 42 | K9: =VLOOKUP(G9,List!B:E,4,0) -> dcsm-EF_BUS_TLM_MODE_10 | L9: =VLOOKUP(G9,List!B:G,6,0) -> 2 | M9: 2021-08-14T09:43:31 | N9: 0000 CALL dcsm-EF_BUS_TLM_MODE_10 -Run
C10: 2021-08-14T09:49:30 | D10: 2021-08-14T09:54:22 | F10: SI Power ON | G10: MEA1_ON_SETUP_SW | H10: =VLOOKUP(G10,List!B:C,2,0) -> 292 | K10: =VLOOKUP(G10,List!B:E,4,0) -> dcsm-EF_MEA1_ON_SW | L10: =VLOOKUP(G10,List!B:G,6,0) -> 12 | M10: 2021-08-14T09:44:13 | N10: 0000 CALL dcsm-EF_MEA1_ON_SW -Run
C11: 2021-08-14T09:54:22 | D11: 2021-08-14T10:14:52 | G11: HEP_ON_SETUP | H11: =VLOOKUP(G11,List!B:C,2,0) -> 1230 | K11: =VLOOKUP(G11,List!B:E,4,0) -> dcsm-EF_HEP_ON_START_for_TL | L11: =VLOOKUP(G11,List!B:G,6,0) -> 34 | M11: 2021-08-14T09:49:05 | N11: 0000 CALL dcsm-EF_HEP_ON_START_for_TL -Run
C12: 2021-08-14T10:14:52 | D12: 2021-08-14T10:16:12 | G12: PME_ON | H12: =VLOOKUP(G12,List!B:C,2,0) -> 80 | K12: =VLOOKUP(G12,List!B:E,4,0) -> dcsm-EF_PME_ON | L12: =VLOOKUP(G12,List!B:G,6,0) -> 2 | M12: 2021-08-14T10:09:35 | N12: 0000 CALL dcsm-EF_PME_ON -Run
C13: 2021-08-14T10:16:12 | D13: 2021-08-14T10:16:26 | G13: MGF_ON_SETUP | H13: =VLOOKUP(G13,List!B:C,2,0) -> 14 | K13: =VLOOKUP(G13,List!B:E,4,0) -> dcsm-EF_MGF_ON | L13: =VLOOKUP(G13,List!B:G,6,0) -> 3 | M13: 2021-08-14T10:10:55 | N13: 0000 CALL dcsm-EF_MGF_ON -Run
C14: 2021-08-14T10:16:26 | D14: 2021-08-14T10:44:48 | F14: SI HV ON | G14: MEA1_HV_ON | H14: =VLOOKUP(G14,List!B:C,2,0) -> 1702 | K14: =VLOOKUP(G14,List!B:E,4,0) -> dcsm-EF_MEA1_HV_ON | L14: =VLOOKUP(G14,List!B:G,6,0) -> 27 | M14: 2021-08-14T10:11:09 | N14: =+"0000 CALL "&K14&" -Run" -> 0000 CALL dcsm-EF_MEA1_HV_ON -Run
C15: 2021-08-14T10:44:48 | D15: 2021-08-14T10:49:18 | G15: HEP_HV_ON | H15: =VLOOKUP(G15,List!B:C,2,0) -> 270 | K15: =VLOOKUP(G15,List!B:E,4,0) -> dcsm-EF_HEPE_HV_ON_OBS_START | L15: =VLOOKUP(G15,List!B:G,6,0) -> 6 | M15: 2021-08-14T10:39:31 | N15: =+"0000 CALL "&K15&" -Run" -> 0000 CALL dcsm-EF_HEPE_HV_ON_OBS_START -Run
C16: 2021-08-14T10:49:18 | D16: 2021-08-14T10:50:00 | F16: TLM mode change (MODE_5) | G16: TLM_MODE_5 | H16: =VLOOKUP(G16,List!B:C,2,0) -> 42 | I16: Mission: 7kbps, without user HK | K16: =VLOOKUP(G16,List!B:E,4,0) -> dcsm-EF_BUS_TLM_MODE_5 | L16: =VLOOKUP(G16,List!B:G,6,0) -> 2 | M16: 2021-08-14T10:44:01 | N16: 0000 CALL dcsm-EF_BUS_TLM_MODE_5 -Run
C17: 2021-08-14T10:50:00 | D17: =C18 -> 2021-08-15T05:34:39 | E17: Observation A | H17: =(D17-C17)*3600*24 -> 67479 | I17: =H17/3600 -> 18.74416667 | L17: 0 | M17: 2021-08-14T10:44:43 | N17: ="0000 WAIT_SEC "&TEXT(H17,"#0") -> 0000 WAIT_SEC 67479
C18: =D18-H18/3600/24 -> 2021-08-15T05:34:39 | D18: =C19 -> 2021-08-15T05:35:21 | F18: TLM mode change (MODE_10) | G18: TLM_MODE_10 | H18: =VLOOKUP(G18,List!B:C,2,0) -> 42 | I18: Mission: 4kbps, with user HK | K18: =VLOOKUP(G18,List!B:E,4,0) -> dcsm-EF_BUS_TLM_MODE_10 | L18: =VLOOKUP(G18,List!B:G,6,0) -> 2 | M18: 2021-08-15T05:29:22 | N18: 0000 CALL dcsm-EF_BUS_TLM_MODE_10 -Run
C19: =D19-H19/3600/24 -> 2021-08-15T05:35:21 | D19: =C20 -> 2021-08-15T05:38:31 | F19: SI HV OFF | G19: HEP_HV_OFF | H19: =VLOOKUP(G19,List!B:C,2,0) -> 190 | K19: =VLOOKUP(G19,List!B:E,4,0) -> dcsm-EF_HEPE_HV_OFF_OBS_OFF | L19: =VLOOKUP(G19,List!B:G,6,0) -> 5 | M19: 2021-08-15T05:30:04 | N19: 0000 CALL dcsm-EF_HEPE_HV_OFF_OBS_OFF -Run
C20: =D20-H20/3600/24 -> 2021-08-15T05:38:31 | D20: =C21 -> 2021-08-15T05:41:33 | G20: MEA1_HV_OFF | H20: =VLOOKUP(G20,List!B:C,2,0) -> 182 | K20: =VLOOKUP(G20,List!B:E,4,0) -> dcsm-EF_MEA1_HV_OFF | L20: =VLOOKUP(G20,List!B:G,6,0) -> 10 | M20: 2021-08-15T05:33:14 | N20: 0000 CALL dcsm-EF_MEA1_HV_OFF -Run
C21: 2021-08-15T05:41:33 | D21: =C21+H21/3600/24 -> 2021-08-15T06:01:33 | E21: WOL#1 | G21: =(C22-D20)*24*3600 -> 1800 | H21: 1200 | L21: 0 | M21: 2021-08-15T05:36:16 | N21: ="0000 WAIT_SEC "&TEXT(G21,"#0") -> 0000 WAIT_SEC 1800
C22: =D21+10/60/24 -> 2021-08-15T06:11:33 | D22: =C22+H22/3600/24 -> 2021-08-15T06:39:55 | F22: SI HV ON | G22: MEA1_HV_ON | H22: =VLOOKUP(G22,List!B:C,2,0) -> 1702 | K22: =VLOOKUP(G22,List!B:E,4,0) -> dcsm-EF_MEA1_HV_ON | L22: =VLOOKUP(G22,List!B:G,6,0) -> 27 | M22: 2021-08-15T06:06:16 | N22: =+"0000 CALL "&K22&" -Run" -> 0000 CALL dcsm-EF_MEA1_HV_ON -Run
C23: =D22 -> 2021-08-15T06:39:55 | D23: 2021-08-15T06:44:25 | G23: HEP_HV_ON | H23: =VLOOKUP(G23,List!B:C,2,0) -> 270 | K23: =VLOOKUP(G23,List!B:E,4,0) -> dcsm-EF_HEPE_HV_ON_OBS_START | L23: =VLOOKUP(G23,List!B:G,6,0) -> 6 | M23: 2021-08-15T06:34:38 | N23: =+"0000 CALL "&K23&" -Run" -> 0000 CALL dcsm-EF_HEPE_HV_ON_OBS_START -Run
C24: 2021-08-15T06:44:25 | D24: 2021-08-15T06:45:07 | F24: TLM mode change (MODE_5) | G24: TLM_MODE_5 | H24: =VLOOKUP(G24,List!B:C,2,0) -> 42 | I24: Mission: 7kbps, without user HK | K24: =VLOOKUP(G24,List!B:E,4,0) -> dcsm-EF_BUS_TLM_MODE_5 | L24: =VLOOKUP(G24,List!B:G,6,0) -> 2 | M24: 2021-08-15T06:39:08 | N24: 0000 CALL dcsm-EF_BUS_TLM_MODE_5 -Run
C25: 2021-08-15T06:45:07 | D25: =C26 -> 2021-08-16T05:36:02 | E25: Observation B | H25: =(D25-C25)*3600*24 -> 82255 | I25: =H25/3600 -> 22.84861111 | L25: 0 | M25: 2021-08-15T06:39:50 | N25: ="0000 WAIT_SEC "&TEXT(H25,"#0") -> 0000 WAIT_SEC 82255
C26: =D26-H26/3600/24 -> 2021-08-16T05:36:02 | D26: =C27 -> 2021-08-16T05:36:44 | F26: TLM mode change (MODE_10) | G26: TLM_MODE_10 | H26: =VLOOKUP(G26,List!B:C,2,0) -> 42 | I26: Mission: 4kbps, with user HK | K26: =VLOOKUP(G26,List!B:E,4,0) -> dcsm-EF_BUS_TLM_MODE_10 | L26: =VLOOKUP(G26,List!B:G,6,0) -> 2 | M26: 2021-08-16T05:30:45 | N26: 0000 CALL dcsm-EF_BUS_TLM_MODE_10 -Run
C27: =D27-H27/3600/24 -> 2021-08-16T05:36:44 | D27: =C28 -> 2021-08-16T05:39:54 | F27: SI HV OFF | G27: HEP_HV_OFF | H27: =VLOOKUP(G27,List!B:C,2,0) -> 190 | K27: =VLOOKUP(G27,List!B:E,4,0) -> dcsm-EF_HEPE_HV_OFF_OBS_OFF | L27: =VLOOKUP(G27,List!B:G,6,0) -> 5 | M27: 2021-08-16T05:31:27 | N27: 0000 CALL dcsm-EF_HEPE_HV_OFF_OBS_OFF -Run
C28: =D28-H28/3600/24 -> 2021-08-16T05:39:54 | D28: =C29 -> 2021-08-16T05:42:56 | G28: MEA1_HV_OFF | H28: =VLOOKUP(G28,List!B:C,2,0) -> 182 | K28: =VLOOKUP(G28,List!B:E,4,0) -> dcsm-EF_MEA1_HV_OFF | L28: =VLOOKUP(G28,List!B:G,6,0) -> 10 | M28: 2021-08-16T05:34:37 | N28: 0000 CALL dcsm-EF_MEA1_HV_OFF -Run
C29: 2021-08-16T05:42:56 | D29: =C29+H29/3600/24 -> 2021-08-16T06:02:56 | E29: WOL#2 | G29: =(C30-D28)*24*3600 -> 1800 | H29: 1200 | L29: 0 | M29: 2021-08-16T05:37:39 | N29: ="0000 WAIT_SEC "&TEXT(G29,"#0") -> 0000 WAIT_SEC 1800
C30: =D29+10/60/24 -> 2021-08-16T06:12:56 | D30: =C30+H30/3600/24 -> 2021-08-16T06:41:18 | F30: SI HV ON | G30: MEA1_HV_ON | H30: =VLOOKUP(G30,List!B:C,2,0) -> 1702 | K30: =VLOOKUP(G30,List!B:E,4,0) -> dcsm-EF_MEA1_HV_ON | L30: =VLOOKUP(G30,List!B:G,6,0) -> 27 | M30: 2021-08-16T06:07:39 | N30: =+"0000 CALL "&K30&" -Run" -> 0000 CALL dcsm-EF_MEA1_HV_ON -Run
C31: =D30 -> 2021-08-16T06:41:18 | D31: 2021-08-16T06:45:48 | G31: HEP_HV_ON | H31: =VLOOKUP(G31,List!B:C,2,0) -> 270 | K31: =VLOOKUP(G31,List!B:E,4,0) -> dcsm-EF_HEPE_HV_ON_OBS_START | L31: =VLOOKUP(G31,List!B:G,6,0) -> 6 | M31: 2021-08-16T06:36:01 | N31: =+"0000 CALL "&K31&" -Run" -> 0000 CALL dcsm-EF_HEPE_HV_ON_OBS_START -Run
C32: 2021-08-16T06:45:48 | D32: 2021-08-16T06:46:30 | F32: TLM mode change (MODE_5) | G32: TLM_MODE_5 | H32: =VLOOKUP(G32,List!B:C,2,0) -> 42 | I32: Mission: 7kbps, without user HK | K32: =VLOOKUP(G32,List!B:E,4,0) -> dcsm-EF_BUS_TLM_MODE_5 | L32: =VLOOKUP(G32,List!B:G,6,0) -> 2 | M32: 2021-08-16T06:40:31 | N32: 0000 CALL dcsm-EF_BUS_TLM_MODE_5 -Run
C33: 2021-08-16T06:46:30 | D33: =C34 -> 2021-08-17T05:35:16 | E33: Observation C | H33: =(D33-C33)*3600*24 -> 82126 | I33: =H33/3600 -> 22.81277778 | L33: 0 | M33: 2021-08-16T06:41:13 | N33: ="0000 WAIT_SEC "&TEXT(H33,"#0") -> 0000 WAIT_SEC 82126
C34: =D34-H34/3600/24 -> 2021-08-17T05:35:16 | D34: =C35 -> 2021-08-17T05:35:58 | F34: TLM mode change (MODE_10) | G34: TLM_MODE_10 | H34: =VLOOKUP(G34,List!B:C,2,0) -> 42 | I34: Mission: 4kbps, with user HK | K34: =VLOOKUP(G34,List!B:E,4,0) -> dcsm-EF_BUS_TLM_MODE_10 | L34: =VLOOKUP(G34,List!B:G,6,0) -> 2 | M34: 2021-08-17T05:29:59 | N34: 0000 CALL dcsm-EF_BUS_TLM_MODE_10 -Run
C35: =D35-H35/3600/24 -> 2021-08-17T05:35:58 | D35: =C36 -> 2021-08-17T05:39:08 | F35: SI HV OFF | G35: HEP_HV_OFF | H35: =VLOOKUP(G35,List!B:C,2,0) -> 190 | K35: =VLOOKUP(G35,List!B:E,4,0) -> dcsm-EF_HEPE_HV_OFF_OBS_OFF | L35: =VLOOKUP(G35,List!B:G,6,0) -> 5 | M35: 2021-08-17T05:30:41 | N35: 0000 CALL dcsm-EF_HEPE_HV_OFF_OBS_OFF -Run
C36: =D36-H36/3600/24 -> 2021-08-17T05:39:08 | D36: =C37 -> 2021-08-17T05:42:10 | G36: MEA1_HV_OFF | H36: =VLOOKUP(G36,List!B:C,2,0) -> 182 | K36: =VLOOKUP(G36,List!B:E,4,0) -> dcsm-EF_MEA1_HV_OFF | L36: =VLOOKUP(G36,List!B:G,6,0) -> 10 | M36: 2021-08-17T05:33:51 | N36: 0000 CALL dcsm-EF_MEA1_HV_OFF -Run
C37: 2021-08-17T05:42:10 | D37: =C37+H37/3600/24 -> 2021-08-17T06:02:10 | E37: WOL#3 | G37: =(C38-D36)*24*3600 -> 1800 | H37: 1200 | L37: 0 | M37: 2021-08-17T05:36:53 | N37: ="0000 WAIT_SEC "&TEXT(G37,"#0") -> 0000 WAIT_SEC 1800
C38: =D37+10/60/24 -> 2021-08-17T06:12:10 | D38: =C38+H38/3600/24 -> 2021-08-17T06:40:32 | F38: SI HV ON | G38: MEA1_HV_ON | H38: =VLOOKUP(G38,List!B:C,2,0) -> 1702 | K38: =VLOOKUP(G38,List!B:E,4,0) -> dcsm-EF_MEA1_HV_ON | L38: =VLOOKUP(G38,List!B:G,6,0) -> 27 | M38: 2021-08-17T06:06:53 | N38: =+"0000 CALL "&K38&" -Run" -> 0000 CALL dcsm-EF_MEA1_HV_ON -Run
C39: =D38 -> 2021-08-17T06:40:32 | D39: 2021-08-17T06:45:02 | G39: HEP_HV_ON | H39: =VLOOKUP(G39,List!B:C,2,0) -> 270 | K39: =VLOOKUP(G39,List!B:E,4,0) -> dcsm-EF_HEPE_HV_ON_OBS_START | L39: =VLOOKUP(G39,List!B:G,6,0) -> 6 | M39: 2021-08-17T06:35:15 | N39: =+"0000 CALL "&K39&" -Run" -> 0000 CALL dcsm-EF_HEPE_HV_ON_OBS_START -Run
C40: 2021-08-17T06:45:02 | D40: 2021-08-17T06:45:44 | F40: TLM mode change (MODE_5) | G40: TLM_MODE_5 | H40: =VLOOKUP(G40,List!B:C,2,0) -> 42 | I40: Mission: 7kbps, without user HK | K40: =VLOOKUP(G40,List!B:E,4,0) -> dcsm-EF_BUS_TLM_MODE_5 | L40: =VLOOKUP(G40,List!B:G,6,0) -> 2 | M40: 2021-08-17T06:39:45 | N40: 0000 CALL dcsm-EF_BUS_TLM_MODE_5 -Run
C41: 2021-08-17T06:45:44 | D41: =C42 -> 2021-08-18T05:37:31 | E41: Observation D | H41: =(D41-C41)*3600*24 -> 82307 | I41: =H41/3600 -> 22.86305556 | L41: 0 | M41: 2021-08-17T06:40:27 | N41: ="0000 WAIT_SEC "&TEXT(H41,"#0") -> 0000 WAIT_SEC 82307
C42: =D42-H42/3600/24 -> 2021-08-18T05:37:31 | D42: =C43 -> 2021-08-18T05:38:13 | F42: TLM mode change (MODE_10) | G42: TLM_MODE_10 | H42: =VLOOKUP(G42,List!B:C,2,0) -> 42 | I42: Mission: 4kbps, with user HK | K42: =VLOOKUP(G42,List!B:E,4,0) -> dcsm-EF_BUS_TLM_MODE_10 | L42: =VLOOKUP(G42,List!B:G,6,0) -> 2 | M42: 2021-08-18T05:32:14 | N42: 0000 CALL dcsm-EF_BUS_TLM_MODE_10 -Run
C43: =D43-H43/3600/24 -> 2021-08-18T05:38:13 | D43: =C44 -> 2021-08-18T05:41:23 | F43: SI HV OFF | G43: HEP_HV_OFF | H43: =VLOOKUP(G43,List!B:C,2,0) -> 190 | K43: =VLOOKUP(G43,List!B:E,4,0) -> dcsm-EF_HEPE_HV_OFF_OBS_OFF | L43: =VLOOKUP(G43,List!B:G,6,0) -> 5 | M43: 2021-08-18T05:32:56 | N43: 0000 CALL dcsm-EF_HEPE_HV_OFF_OBS_OFF -Run
C44: =D44-H44/3600/24 -> 2021-08-18T05:41:23 | D44: =C45 -> 2021-08-18T05:44:25 | G44: MEA1_HV_OFF | H44: =VLOOKUP(G44,List!B:C,2,0) -> 182 | K44: =VLOOKUP(G44,List!B:E,4,0) -> dcsm-EF_MEA1_HV_OFF | L44: =VLOOKUP(G44,List!B:G,6,0) -> 10 | M44: 2021-08-18T05:36:06 | N44: 0000 CALL dcsm-EF_MEA1_HV_OFF -Run
C45: 2021-08-18T05:44:25 | D45: =C45+H45/3600/24 -> 2021-08-18T06:04:25 | E45: WOL#4 | G45: =(C46-D44)*24*3600 -> 1800 | H45: 1200 | L45: 0 | M45: 2021-08-18T05:39:08 | N45: ="0000 WAIT_SEC "&TEXT(G45,"#0") -> 0000 WAIT_SEC 1800
C46: =D45+10/60/24 -> 2021-08-18T06:14:25 | D46: =C46+H46/3600/24 -> 2021-08-18T06:42:47 | F46: SI HV ON | G46: MEA1_HV_ON | H46: =VLOOKUP(G46,List!B:C,2,0) -> 1702 | K46: =VLOOKUP(G46,List!B:E,4,0) -> dcsm-EF_MEA1_HV_ON | L46: =VLOOKUP(G46,List!B:G,6,0) -> 27 | M46: 2021-08-18T06:09:08 | N46: =+"0000 CALL "&K46&" -Run" -> 0000 CALL dcsm-EF_MEA1_HV_ON -Run
C47: =D46 -> 2021-08-18T06:42:47 | D47: 2021-08-18T06:47:17 | G47: HEP_HV_ON | H47: =VLOOKUP(G47,List!B:C,2,0) -> 270 | K47: =VLOOKUP(G47,List!B:E,4,0) -> dcsm-EF_HEPE_HV_ON_OBS_START | L47: =VLOOKUP(G47,List!B:G,6,0) -> 6 | M47: 2021-08-18T06:37:30 | N47: =+"0000 CALL "&K47&" -Run" -> 0000 CALL dcsm-EF_HEPE_HV_ON_OBS_START -Run
C48: 2021-08-18T06:47:17 | D48: 2021-08-18T06:47:59 | F48: TLM mode change (MODE_5) | G48: TLM_MODE_5 | H48: =VLOOKUP(G48,List!B:C,2,0) -> 42 | I48: Mission: 7kbps, without user HK | K48: =VLOOKUP(G48,List!B:E,4,0) -> dcsm-EF_BUS_TLM_MODE_5 | L48: =VLOOKUP(G48,List!B:G,6,0) -> 2 | M48: 2021-08-18T06:42:00 | N48: 0000 CALL dcsm-EF_BUS_TLM_MODE_5 -Run
C49: 2021-08-18T06:47:59 | D49: =C50 -> 2021-08-19T05:08:38 | E49: Observation E | H49: =(D49-C49)*3600*24 -> 80439 | I49: =H49/3600 -> 22.34416667 | L49: 0 | M49: 2021-08-18T06:42:42 | N49: ="0000 WAIT_SEC "&TEXT(H49,"#0") -> 0000 WAIT_SEC 80439
C50: =D50-H50/3600/24 -> 2021-08-19T05:08:38 | D50: =C51 -> 2021-08-19T05:09:20 | F50: TLM mode change (MODE_10) | G50: TLM_MODE_10 | H50: =VLOOKUP(G50,List!B:C,2,0) -> 42 | I50: Mission: 4kbps, with user HK | K50: =VLOOKUP(G50,List!B:E,4,0) -> dcsm-EF_BUS_TLM_MODE_10 | L50: =VLOOKUP(G50,List!B:G,6,0) -> 2 | M50: 2021-08-19T05:03:21 | N50: 0000 CALL dcsm-EF_BUS_TLM_MODE_10 -Run
C51: =D51-H51/3600/24 -> 2021-08-19T05:09:20 | D51: =C52 -> 2021-08-19T05:12:30 | F51: SI HV OFF | G51: HEP_HV_OFF | H51: =VLOOKUP(G51,List!B:C,2,0) -> 190 | K51: =VLOOKUP(G51,List!B:E,4,0) -> dcsm-EF_HEPE_HV_OFF_OBS_OFF | L51: =VLOOKUP(G51,List!B:G,6,0) -> 5 | M51: 2021-08-19T05:04:03 | N51: 0000 CALL dcsm-EF_HEPE_HV_OFF_OBS_OFF -Run
C52: =D52-H52/3600/24 -> 2021-08-19T05:12:30 | D52: =C53 -> 2021-08-19T05:15:36 | G52: MEA1_HV_SCAN_OFF | H52: =VLOOKUP(G52,List!B:C,2,0) -> 186 | K52: =VLOOKUP(G52,List!B:E,4,0) -> dcsm-EF_MEA1_HV_SCAN_OFF | L52: =VLOOKUP(G52,List!B:G,6,0) -> 12 | M52: 2021-08-19T05:07:13 | N52: 0000 CALL dcsm-EF_MEA1_HV_SCAN_OFF -Run
C53: =D53-H53/3600/24 -> 2021-08-19T05:15:36 | D53: =C54 -> 2021-08-19T05:16:46 | F53: SI OFF | G53: HEP_OFF | H53: =VLOOKUP(G53,List!B:C,2,0) -> 70 | K53: =VLOOKUP(G53,List!B:E,4,0) -> dcsm-EF_HEPE_OFF_STOP | L53: =VLOOKUP(G53,List!B:G,6,0) -> 4 | M53: 2021-08-19T05:10:19 | N53: =+"0000 CALL "&K53&" -Run" -> 0000 CALL dcsm-EF_HEPE_OFF_STOP -Run
C54: 2021-08-19T05:16:46 | D54: 2021-08-19T05:19:26 | G54: MEA1_OFF | H54: =VLOOKUP(G54,List!B:C,2,0) -> 160 | K54: =VLOOKUP(G54,List!B:E,4,0) -> dcsm-EF_MEA1_OFF | L54: =VLOOKUP(G54,List!B:G,6,0) -> 4 | M54: 2021-08-19T05:11:29 | N54: =+"0000 CALL "&K54&" -Run" -> 0000 CALL dcsm-EF_MEA1_OFF -Run
C55: 2021-08-19T05:19:26 | D55: 2021-08-19T05:19:34 | G55: MGF_OFF | H55: =VLOOKUP(G55,List!B:C,2,0) -> 8 | K55: =VLOOKUP(G55,List!B:E,4,0) -> dcsm-EF_MGF_OFF | L55: =VLOOKUP(G55,List!B:G,6,0) -> 1 | M55: 2021-08-19T05:14:09 | N55: 0000 CALL dcsm-EF_MGF_OFF -Run
C56: 2021-08-19T05:19:34 | D56: 2021-08-19T05:20:14 | G56: PME_OFF | H56: =VLOOKUP(G56,List!B:C,2,0) -> 40 | K56: =VLOOKUP(G56,List!B:E,4,0) -> dcsm-EF_PME_OFF | L56: =VLOOKUP(G56,List!B:G,6,0) -> 1 | M56: 2021-08-19T05:14:17 | N56: 0000 CALL dcsm-EF_PME_OFF -Run
C57: 2021-08-19T05:20:14 | D57: 2021-08-19T05:22:14 | F57: MDP OFF | G57: MDP_OFF_D | H57: =VLOOKUP(G57,List!B:C,2,0) -> 120 | K57: =VLOOKUP(G57,List!B:E,4,0) -> dcsm-EF_MDP_POWEROFF | L57: =VLOOKUP(G57,List!B:G,6,0) -> 3 | M57: 2021-08-19T05:14:57 | N57: 0000 CALL dcsm-EF_MDP_POWEROFF -Run
C58: 2021-08-19T05:22:14 | D58: 2021-08-19T05:26:20 | F58: MACRO ENA | G58: MC_ENA | H58: =VLOOKUP(G58,List!B:C,2,0) -> 246 | K58: =VLOOKUP(G58,List!B:E,4,0) -> dcsm-MC_ENA_MDP | L58: =VLOOKUP(G58,List!B:G,6,0) -> 21 | M58: 2021-08-19T05:16:57 | N58: 0000 CALL dcsm-MC_ENA_MDP -Run
C59: 2021-08-19T05:26:20 | D59: =C60 -> 2021-08-19T05:30:00 | F59: BUS OFF | G59: BUS_OFF_D | H59: =VLOOKUP(G59,List!B:C,2,0) -> 220 | K59: =VLOOKUP(G59,List!B:E,4,0) -> dcsm-EF_BUS_MONI_OFF | L59: =VLOOKUP(G59,List!B:G,6,0) -> 5 | M59: 2021-08-19T05:21:03 | N59: 0000 CALL dcsm-EF_BUS_MONI_OFF -Run
C60: 2021-08-19T05:30:00 | D60: =C60+H60/3600/24 -> 2021-08-19T05:50:00 | G60: END | H60: 1200 | L60: 0 | M60: 2021-08-19T05:24:43
D61: =D59-100/3600/24 -> 2021-08-19T05:28:20 | M61: =D61-317/3600/24 -> 2021-08-19T05:23:03
